[Event "UK Open Blitz Championships 2024 - London Qualifier"]
[Site "London, United Kingdom"]
[Date "2024.09.21"]
[Round "8.5"]
[White "Banerjee, Supratit"]
[Black "Turner, Max N"]
[Result "0-1"]
[TimeControl "3 minutes + 2 seconds incr. from move 1"]
[WhiteTitle "CM"]
[BlackTitle "CM"]
[WhiteFideId "2410079"]
[BlackFideId "447722"]
[WhiteElo "2138"]
[BlackElo "2157"]

1. e4 {[%clk 00:03:03]} c6 {[%clk 00:03:02]} {[%emt 00:00:03]} 2. d4 {[%clk
00:03:04]} d5 {[%clk 00:03:03]} 3. Nd2 {[%clk 00:03:05]} dxe4 {[%clk 00:03:04]}
{[%emt 00:00:02]} 4. Nxe4 {[%clk 00:03:06]} {[%emt 00:00:01]} Bf5 {[%clk
00:03:04]} {[%emt 00:00:02]} 5. Ng3 {[%clk 00:03:07]} Bg6 {[%clk 00:03:05]} 6.
h4 {[%clk 00:03:09]} h6 {[%clk 00:03:07]} 7. Nf3 {[%clk 00:03:08]} {[%emt
00:00:02]} Nd7 {[%clk 00:03:08]} 8. c3 {[%clk 00:03:10]} e6 {[%clk 00:03:05]}
{[%emt 00:00:04]} 9. Bd3 {[%clk 00:03:10]} {[%emt 00:00:02]} Bxd3 {[%clk
00:03:05]} {[%emt 00:00:03]} 10. Qxd3 {[%clk 00:03:10]} {[%emt 00:00:02]} Ngf6
{[%clk 00:03:06]} {[%emt 00:00:01]} 11. Be3 {[%clk 00:03:10]} {[%emt 00:00:02]}
Bd6 {[%clk 00:02:59]} {[%emt 00:00:10]} 12. Ne4 {[%clk 00:03:10]} {[%emt
00:00:02]} Nxe4 {[%clk 00:02:59]} {[%emt 00:00:01]} 13. Qxe4 {[%clk 00:03:10]}
{[%emt 00:00:02]} Nf6 {[%clk 00:03:00]} {[%emt 00:00:01]} 14. Qc2 {[%clk
00:03:10]} Qc7 {[%clk 00:02:57]} {[%emt 00:00:05]} 15. O-O-O {[%clk 00:03:10]}
{[%emt 00:00:02]} Nd5 {[%clk 00:02:57]} {[%emt 00:00:02]} 16. c4 {[%clk
00:03:04]} {[%emt 00:00:08]} Nxe3 {[%clk 00:02:39]} {[%emt 00:00:21]} 17. fxe3
{[%clk 00:03:04]} {[%emt 00:00:02]} O-O-O {[%clk 00:02:22]} {[%emt 00:00:18]}
18. c5 {[%clk 00:03:05]} {[%emt 00:00:01]} Be7 {[%clk 00:02:24]} 19. Ne5 {[%clk
00:03:06]} {[%emt 00:00:01]} Bf6 {[%clk 00:02:25]} 20. Nc4 {[%clk 00:03:03]}
{[%emt 00:00:04]} Be7 {[%clk 00:02:15]} {[%emt 00:00:13]} 21. Rdf1 {[%clk
00:03:01]} {[%emt 00:00:04]} Rhf8 {[%clk 00:02:15]} {[%emt 00:00:02]} 22. Ne5
{[%clk 00:02:59]} {[%emt 00:00:04]} Bf6 {[%clk 00:02:14]} {[%emt 00:00:03]} 23.
Nc4 {[%clk 00:02:57]} {[%emt 00:00:04]} Be7 {[%clk 00:02:10]} {[%emt 00:00:06]}
24. Ne5 {[%clk 00:02:49]} {[%emt 00:00:09]} Bf6 {[%clk 00:02:09]} {[%emt
00:00:03]} 25. Nc4 {[%clk 00:02:50]} {[%emt 00:00:01]} Kb8 {[%clk 00:02:11]} 26.
Nd6 {[%clk 00:02:36]} {[%emt 00:00:15]} e5 {[%clk 00:02:03]} {[%emt 00:00:10]}
27. Rd1 {[%clk 00:02:33]} {[%emt 00:00:06]} exd4 {[%clk 00:02:01]} {[%emt
00:00:04]} 28. exd4 {[%clk 00:02:34]} Be7 {[%clk 00:02:01]} {[%emt 00:00:02]}
29. Nf5 {[%clk 00:02:30]} {[%emt 00:00:06]} Rd5 {[%clk 00:01:49]} {[%emt
00:00:14]} 30. Kb1 {[%clk 00:02:12]} {[%emt 00:00:19]} Bf6 {[%clk 00:01:48]}
{[%emt 00:00:04]} 31. g4 {[%clk 00:02:07]} {[%emt 00:00:07]} Qf4 {[%clk
00:01:39]} {[%emt 00:00:12]} 32. Rhf1 {[%clk 00:01:49]} {[%emt 00:00:20]} Qc7
{[%clk 00:01:07]} {[%emt 00:00:34]} 33. Qf2 {[%clk 00:01:34]} {[%emt 00:00:17]}
g6 {[%clk 00:00:32]} {[%emt 00:00:36]} 34. Nd6 {[%clk 00:01:23]} {[%emt
00:00:13]} Be7 {[%clk 00:00:25]} {[%emt 00:00:09]} 35. Nxf7 {[%clk 00:00:59]}
{[%emt 00:00:25]} a6 {[%clk 00:00:11]} {[%emt 00:00:16]} 36. Qe2 {[%clk
00:00:51]} {[%emt 00:00:11]} Bxh4 {[%clk 00:00:10]} {[%emt 00:00:03]} 37. Ne5
{[%clk 00:00:51]} {[%emt 00:00:01]} Rfd8 {[%clk 00:00:06]} {[%emt 00:00:07]} 38.
Qe4 {[%clk 00:00:40]} {[%emt 00:00:14]} Bg5 {[%clk 00:00:06]} {[%emt 00:00:02]}
39. Rf7 {[%clk 00:00:39]} {[%emt 00:00:02]} Rxe5 {[%clk 00:00:06]} {[%emt
00:00:03]} 40. Qxg6 {[%clk 00:00:37]} {[%emt 00:00:04]} Re7 {[%clk 00:00:06]}
{[%emt 00:00:02]} 41. Rf3 {[%clk 00:00:37]} {[%emt 00:00:01]} Rde8 {[%clk
00:00:06]} {[%emt 00:00:03]} 42. Rb3 {[%clk 00:00:37]} {[%emt 00:00:02]} Re6
{[%clk 00:00:06]} {[%emt 00:00:02]} 43. Qd3 {[%clk 00:00:36]} {[%emt 00:00:02]}
Ka8 {[%clk 00:00:06]} {[%emt 00:00:02]} 44. Rb6 {[%clk 00:00:35]} {[%emt
00:00:03]} Qc8 {[%clk 00:00:05]} {[%emt 00:00:03]} 45. Kc2 {[%clk 00:00:28]}
{[%emt 00:00:08]} Re2+ {[%clk 00:00:06]} 46. Kb1 {[%clk 00:00:29]} {[%emt
00:00:01]} Re1 {[%clk 00:00:07]} 47. Rxe1 {[%clk 00:00:30]} Rxe1+ {[%clk
00:00:08]} 48. Kc2 {[%clk 00:00:31]} Rc1+ {[%clk 00:00:07]} {[%emt 00:00:03]}
49. Kb3 {[%clk 00:00:32]} {[%emt 00:00:01]} Qe6+ {[%clk 00:00:07]} {[%emt
00:00:02]} 50. Ka3 {[%clk 00:00:33]} Qe3 {[%clk 00:00:07]} {[%emt 00:00:02]} 51.
Qxe3 {[%clk 00:00:32]} {[%emt 00:00:02]} Bxe3 {[%clk 00:00:08]} 52. d5 {[%clk
00:00:34]} Bxc5+ {[%clk 00:00:09]} 53. b4 {[%clk 00:00:34]} {[%emt 00:00:01]}
Bxb6 {[%clk 00:00:09]} {[%emt 00:00:01]} 54. d6 {[%clk 00:00:35]} Rd1 {[%clk
00:00:09]} {[%emt 00:00:05]} 55. Ka4 {[%clk 00:00:36]} Rxd6 {[%clk 00:00:09]}
{[%emt 00:00:02]} 56. a3 {[%clk 00:00:38]} Rd3 {[%clk 00:00:07]} {[%emt
00:00:04]} 57. g5 {[%clk 00:00:39]} hxg5 {[%clk 00:00:08]} {[%emt 00:00:02]} 58.
b5 {[%clk 00:00:40]} cxb5+ {[%clk 00:00:05]} {[%emt 00:00:04]} 59. Kb4 {[%clk
00:00:41]} {[%emt 00:00:01]} Bc7 {[%clk 00:00:05]} {[%emt 00:00:02]} 60. Kc5
{[%clk 00:00:41]} {[%emt 00:00:01]} Rxa3 {[%emt 00:00:03]} 61. Kb4 {[%clk
00:00:42]} Bd6# {[%clk 00:00:05]} {[%emt 00:00:02]} 0-1

[Event "UK Open Blitz Championships 2024 - London Qualifier"]
[Site "London, United Kingdom"]
[Date "2024.09.21"]
[Round "9.1"]
[White "Royal, Shreyas"]
[Black "Roberson, Peter T"]
[Result "1-0"]
[TimeControl "3 minutes + 2 seconds incr. from move 1"]
[WhiteTitle "IM"]
[BlackTitle "IM"]
[WhiteFideId "448869"]
[BlackFideId "412384"]
[WhiteElo "2331"]
[BlackElo "2346"]

1. Nf3 {[%clk 00:03:02]} {[%emt 00:00:01]} c5 {[%clk 00:03:03]} {[%emt
00:00:01]} 2. c4 {[%clk 00:03:01]} {[%emt 00:00:02]} Nc6 {[%clk 00:03:01]}
{[%emt 00:00:04]} 3. Nc3 {[%clk 00:03:02]} {[%emt 00:00:01]} e6 {[%clk
00:02:55]} {[%emt 00:00:09]} 4. e3 {[%clk 00:03:03]} Nf6 {[%clk 00:02:47]}
{[%emt 00:00:10]} 5. d4 {[%clk 00:03:04]} {[%emt 00:00:01]} d5 {[%clk
00:02:47]} {[%emt 00:00:02]} 6. a3 {[%clk 00:03:05]} {[%emt 00:00:01]} cxd4
{[%clk 00:02:44]} {[%emt 00:00:05]} 7. exd4 {[%clk 00:03:01]} {[%emt 00:00:06]}
Be7 {[%clk 00:02:44]} {[%emt 00:00:01]} 8. Bd3 {[%clk 00:02:55]} {[%emt
00:00:08]} dxc4 {[%clk 00:02:44]} {[%emt 00:00:02]} 9. Bxc4 {[%clk 00:02:56]}
{[%emt 00:00:01]} O-O {[%clk 00:02:45]} {[%emt 00:00:01]} 10. O-O {[%clk
00:02:57]} {[%emt 00:00:02]} a6 {[%clk 00:02:31]} {[%emt 00:00:16]} 11. Bd3
{[%clk 00:02:47]} {[%emt 00:00:11]} b5 {[%clk 00:02:29]} {[%emt 00:00:05]} 12.
Bg5 {[%clk 00:02:37]} {[%emt 00:00:12]} Bb7 {[%clk 00:02:12]} {[%emt 00:00:19]}
13. Rc1 {[%clk 00:02:38]} {[%emt 00:00:01]} h6 {[%clk 00:01:55]} {[%emt
00:00:19]} 14. Bf4 {[%clk 00:02:38]} {[%emt 00:00:02]} b4 {[%clk 00:01:47]}
{[%emt 00:00:10]} 15. axb4 {[%clk 00:02:25]} {[%emt 00:00:14]} Nxb4 {[%clk
00:01:48]} {[%emt 00:00:01]} 16. Bb1 {[%clk 00:02:26]} Rc8 {[%clk 00:01:28]}
{[%emt 00:00:22]} 17. Ne5 {[%clk 00:02:11]} {[%emt 00:00:18]} Nbd5 {[%clk
00:01:20]} {[%emt 00:00:09]} 18. Bg3 {[%clk 00:01:49]} {[%emt 00:00:23]} Qb6
{[%clk 00:01:11]} {[%emt 00:00:11]} 19. Nxd5 {[%clk 00:01:10]} {[%emt
00:00:42]} Bxd5 {[%clk 00:01:11]} {[%emt 00:00:02]} 20. Rxc8 {[%clk 00:01:08]}
{[%emt 00:00:03]} Rxc8 {[%clk 00:01:12]} {[%emt 00:00:01]} 21. Bh4 {[%clk
00:01:04]} {[%emt 00:00:07]} Qxb2 {[%clk 00:01:04]} {[%emt 00:00:11]} 22. Bxf6
{[%emt 00:00:07]} Bxf6 {[%clk 00:00:59]} {[%emt 00:00:05]} 23. Qd3 {[%clk
00:01:01]} Rc1 {[%clk 00:00:47]} {[%emt 00:00:14]} 24. f3 {[%clk 00:00:40]}
{[%emt 00:00:23]} Bxe5 {[%clk 00:00:38]} {[%emt 00:00:11]} 25. dxe5 {[%clk
00:00:36]} {[%emt 00:00:06]} Rxf1+ {[%clk 00:00:19]} {[%emt 00:00:21]} 26. Qxf1
{[%clk 00:00:37]} Qxe5 {[%clk 00:00:15]} {[%emt 00:00:06]} 27. h3 {[%clk
00:00:35]} {[%emt 00:00:04]} a5 {[%clk 00:00:14]} {[%emt 00:00:04]} 28. Qd3
{[%clk 00:00:36]} g6 {[%clk 00:00:15]} {[%emt 00:00:01]} 29. Bc2 {[%clk
00:00:33]} {[%emt 00:00:04]} Kg7 {[%emt 00:00:07]} 30. Qb5 {[%clk 00:00:28]}
{[%emt 00:00:05]} Qe1+ {[%clk 00:00:06]} {[%emt 00:00:07]} 31. Kh2 {[%clk
00:00:29]} Qd2 {[%clk 00:00:07]} {[%emt 00:00:01]} 32. Qb2+ {[%clk 00:00:27]}
{[%emt 00:00:04]} Kh7 {[%clk 00:00:04]} {[%emt 00:00:01]} 33. Bxg6+ {[%clk
00:00:27]} 1-0

[Event "UK Open Blitz Championships 2024 - London Qualifier"]
[Site "London, United Kingdom"]
[Date "2024.09.21"]
[Round "9.2"]
[White "Ghasi, Ameet K"]
[Black "Gasanov, Eldar"]
[Result "1/2-1/2"]
[TimeControl "3 minutes + 2 seconds incr. from move 1"]
[WhiteTitle "IM"]
[BlackTitle "GM"]
[WhiteFideId "409200"]
[BlackFideId "14104466"]
[WhiteElo "2524"]
[BlackElo "2467"]

1. Nf3 {[%clk 00:03:01]} {[%emt 00:00:02]} d5 {[%clk 00:03:03]} {[%emt
00:00:01]} 2. c4 {[%clk 00:03:00]} {[%emt 00:00:03]} d4 {[%clk 00:03:02]}
{[%emt 00:00:03]} 3. g3 {[%clk 00:02:52]} {[%emt 00:00:11]} c5 {[%clk
00:02:57]} {[%emt 00:00:07]} 4. b4 {[%clk 00:02:52]} {[%emt 00:00:02]} cxb4
{[%clk 00:02:57]} {[%emt 00:00:02]} 5. a3 {[%clk 00:02:52]} {[%emt 00:00:02]}
bxa3 {[%clk 00:02:42]} {[%emt 00:00:17]} 6. Bxa3 {[%clk 00:02:52]} {[%emt
00:00:03]} Nc6 {[%clk 00:02:43]} 7. Bg2 {[%clk 00:02:52]} {[%emt 00:00:02]} g6
{[%clk 00:02:37]} {[%emt 00:00:08]} 8. d3 {[%clk 00:02:48]} {[%emt 00:00:07]}
Bg7 {[%clk 00:02:37]} {[%emt 00:00:01]} 9. Nbd2 {[%clk 00:02:45]} {[%emt
00:00:05]} Nf6 {[%clk 00:02:31]} {[%emt 00:00:08]} 10. O-O {[%clk 00:02:45]}
{[%emt 00:00:02]} O-O {[%clk 00:02:31]} {[%emt 00:00:02]} 11. Qa4 {[%clk
00:02:43]} {[%emt 00:00:03]} Qc7 {[%clk 00:02:11]} {[%emt 00:00:22]} 12. Rfb1
{[%clk 00:02:37]} {[%emt 00:00:08]} Rd8 {[%clk 00:02:08]} {[%emt 00:00:04]} 13.
Ng5 {[%clk 00:02:20]} {[%emt 00:00:19]} Bd7 {[%clk 00:01:57]} {[%emt 00:00:13]}
14. Nde4 {[%clk 00:02:01]} {[%emt 00:00:22]} b6 {[%clk 00:01:29]} {[%emt
00:00:29]} 15. Nxf6+ {[%clk 00:01:40]} {[%emt 00:00:24]} Bxf6 {[%clk 00:01:24]}
{[%emt 00:00:07]} 16. Ne4 {[%clk 00:01:34]} {[%emt 00:00:08]} Bg7 {[%clk
00:01:23]} {[%emt 00:00:03]} 17. Bc1 {[%clk 00:01:23]} {[%emt 00:00:13]} h6
{[%clk 00:01:14]} {[%emt 00:00:12]} 18. h4 {[%clk 00:01:14]} {[%emt 00:00:11]}
Ne5 {[%clk 00:01:06]} {[%emt 00:00:09]} 19. Qa3 {[%clk 00:01:05]} {[%emt
00:00:12]} Bc6 {[%clk 00:01:06]} {[%emt 00:00:02]} 20. Bf4 {[%clk 00:01:02]}
{[%emt 00:00:05]} Qb7 {[%clk 00:00:54]} {[%emt 00:00:14]} 21. Qa6 {[%clk
00:00:40]} {[%emt 00:00:25]} Qd7 {[%clk 00:00:45]} {[%emt 00:00:11]} 22. Bxe5
{[%clk 00:00:34]} {[%emt 00:00:08]} Bxe5 {[%clk 00:00:41]} {[%emt 00:00:05]} 23.
Nc5 {[%clk 00:00:34]} {[%emt 00:00:02]} Qc7 {[%clk 00:00:32]} {[%emt 00:00:09]}
24. Bxc6 {[%clk 00:00:28]} {[%emt 00:00:10]} Qxc6 {[%clk 00:00:34]} 25. Ne4
{[%clk 00:00:25]} {[%emt 00:00:05]} Rdc8 {[%clk 00:00:18]} {[%emt 00:00:18]} 26.
Rb5 {[%clk 00:00:25]} {[%emt 00:00:02]} Bg7 {[%clk 00:00:13]} {[%emt 00:00:06]}
27. Nd2 {[%clk 00:00:21]} {[%emt 00:00:06]} e5 {[%clk 00:00:11]} {[%emt
00:00:05]} 28. Rd5 {[%clk 00:00:19]} {[%emt 00:00:04]} Kh7 {[%clk 00:00:09]}
{[%emt 00:00:04]} 29. Nf3 {[%clk 00:00:17]} {[%emt 00:00:05]} Qe6 {[%clk
00:00:09]} {[%emt 00:00:01]} 30. Nd2 {[%clk 00:00:16]} {[%emt 00:00:03]} Qg4
{[%clk 00:00:09]} 31. Kf1 {[%clk 00:00:16]} {[%emt 00:00:02]} Qh3+ {[%clk
00:00:10]} {[%emt 00:00:01]} 32. Kg1 {[%clk 00:00:18]} Qg4 {[%clk 00:00:12]} 33.
Re1 {[%clk 00:00:18]} {[%emt 00:00:02]} Rc7 {[%clk 00:00:10]} {[%emt 00:00:03]}
34. Kg2 {[%clk 00:00:15]} {[%emt 00:00:05]} Qe6 {[%clk 00:00:11]} 35. Qb5
{[%clk 00:00:13]} {[%emt 00:00:04]} Rac8 {[%clk 00:00:12]} {[%emt 00:00:01]} 36.
Qa6 {[%clk 00:00:13]} {[%emt 00:00:02]} Qc6 {[%clk 00:00:11]} {[%emt 00:00:03]}
37. Kg1 {[%clk 00:00:13]} {[%emt 00:00:02]} Rd7 {[%clk 00:00:10]} {[%emt
00:00:02]} 38. Rb5 {[%clk 00:00:14]} {[%emt 00:00:02]} Qc7 {[%clk 00:00:08]}
{[%emt 00:00:04]} 39. Reb1 {[%clk 00:00:15]} {[%emt 00:00:01]} Bf8 {[%clk
00:00:07]} {[%emt 00:00:03]} 40. Nf3 {[%clk 00:00:16]} {[%emt 00:00:02]} Bd6
{[%clk 00:00:08]} 41. Nd2 {[%clk 00:00:17]} Re8 {[%clk 00:00:08]} {[%emt
00:00:02]} 42. Ne4 {[%clk 00:00:18]} Be7 {[%clk 00:00:09]} 43. c5 {[%clk
00:00:18]} {[%emt 00:00:02]} bxc5 {[%clk 00:00:08]} {[%emt 00:00:03]} 44. Rb7
{[%clk 00:00:19]} {[%emt 00:00:01]} Qc8 {[%clk 00:00:09]} 45. Qxa7 {[%clk
00:00:19]} Red8 {[%clk 00:00:10]} {[%emt 00:00:02]} 46. h5 {[%clk 00:00:16]}
{[%emt 00:00:06]} gxh5 {[%clk 00:00:09]} {[%emt 00:00:03]} 47. R1b6 {[%clk
00:00:10]} {[%emt 00:00:08]} h4 {[%clk 00:00:09]} {[%emt 00:00:02]} 48. g4
{[%clk 00:00:07]} {[%emt 00:00:05]} Rxb7 {[%clk 00:00:10]} 49. Rxb7 {[%clk
00:00:09]} Qxg4+ {[%clk 00:00:11]} {[%emt 00:00:01]} 50. Kf1 {[%clk 00:00:10]}
Rg8 {[%clk 00:00:12]} {[%emt 00:00:02]} 51. Ke1 {[%clk 00:00:11]} {[%emt
00:00:01]} Qf4 {[%clk 00:00:13]} {[%emt 00:00:01]} 52. e3 {[%clk 00:00:03]}
{[%emt 00:00:10]} dxe3 {[%clk 00:00:12]} {[%emt 00:00:04]} 53. Rxe7 {[%clk
00:00:05]} {[%emt 00:00:01]} exf2+ {[%clk 00:00:13]} 54. Nxf2 {[%clk 00:00:05]}
{[%emt 00:00:02]} Qe3+ {[%clk 00:00:12]} {[%emt 00:00:02]} 55. Kf1 {[%clk
00:00:06]} Qc1+ {[%clk 00:00:13]} 56. Ke2 {[%clk 00:00:08]} Qc2+ {[%clk
00:00:13]} 57. Ke3 {[%clk 00:00:07]} {[%emt 00:00:04]} Qc1+ {[%clk 00:00:14]}
{[%emt 00:00:01]} 58. Ke2 {[%clk 00:00:08]} Qc2+ {[%clk 00:00:15]} {[%emt
00:00:01]} 59. Ke3 {[%clk 00:00:09]} {[%emt 00:00:01]} Qc1+ {[%clk 00:00:16]}
60. Ke4 {[%clk 00:00:05]} {[%emt 00:00:07]} Qf4+ {[%clk 00:00:14]} {[%emt
00:00:04]} 61. Kd5 {[%clk 00:00:06]} {[%emt 00:00:01]} Qd4+ {[%clk 00:00:14]}
{[%emt 00:00:01]} 62. Kc6 {[%clk 00:00:06]} {[%emt 00:00:01]} Rc8+ {[%clk
00:00:15]} {[%emt 00:00:01]} 63. Kb7 {[%clk 00:00:05]} {[%emt 00:00:04]} Rf8
{[%clk 00:00:16]} 64. Ne4 {[%clk 00:00:05]} {[%emt 00:00:02]} Qxd3 {[%clk
00:00:17]} {[%emt 00:00:01]} 65. Nxc5 {[%clk 00:00:04]} {[%emt 00:00:03]} Qd5+
{[%clk 00:00:18]} 66. Kc7 {[%clk 00:00:05]} {[%emt 00:00:01]} e4 {[%clk
00:00:18]} {[%emt 00:00:02]} 67. Nxe4 {[%emt 00:00:05]} Qf5 {[%clk 00:00:16]}
68. Qd4 {[%clk 00:00:06]} {[%emt 00:00:01]} Kg6 {[%clk 00:00:17]} {[%emt
00:00:02]} 69. Rd7 {[%clk 00:00:05]} {[%emt 00:00:03]} h3 {[%clk 00:00:17]}
{[%emt 00:00:03]} 70. Qd6+ {[%clk 00:00:06]} {[%emt 00:00:01]} Kg7 {[%clk
00:00:18]} 71. Qg3 {[%clk 00:00:06]} {[%emt 00:00:01]} Kh7 {[%emt 00:00:04]} 72.
Qd3 {[%clk 00:00:04]} {[%emt 00:00:03]} Qe5+ {[%clk 00:00:17]} {[%emt
00:00:01]} 73. Nd6 {[%clk 00:00:05]} {[%emt 00:00:02]} Kg7 {[%clk 00:00:17]}
{[%emt 00:00:02]} 1/2-1/2

[Event "UK Open Blitz Championships 2024 - London Qualifier"]
[Site "London, United Kingdom"]
[Date "2024.09.21"]
[Round "9.3"]
[White "Korshunov, Sergey"]
[Black "Turner, Max N"]
[Result "1-0"]
[TimeControl "3 minutes + 2 seconds incr. from move 1"]
[WhiteTitle "FM"]
[BlackTitle "CM"]
[WhiteFideId "34274715"]
[BlackFideId "447722"]
[WhiteElo "2278"]
[BlackElo "2157"]

1. d4 {[%clk 00:03:03]} d5 {[%clk 00:03:02]} {[%emt 00:00:02]} 2. c4 {[%clk
00:03:05]} e6 {[%clk 00:03:04]} 3. Nc3 {[%clk 00:03:05]} {[%emt 00:00:02]} Nf6
{[%clk 00:03:05]} 4. Nf3 {[%clk 00:03:05]} {[%emt 00:00:02]} Be7 {[%clk
00:03:04]} {[%emt 00:00:02]} 5. Bg5 {[%clk 00:03:03]} {[%emt 00:00:04]} O-O
{[%clk 00:03:04]} {[%emt 00:00:03]} 6. e3 {[%clk 00:03:04]} {[%emt 00:00:01]}
h6 {[%clk 00:03:06]} 7. Bh4 {[%clk 00:03:05]} b6 {[%clk 00:03:07]} 8. Qc2
{[%clk 00:03:04]} {[%emt 00:00:03]} Bb7 {[%clk 00:02:59]} {[%emt 00:00:10]} 9.
Rd1 {[%clk 00:03:01]} {[%emt 00:00:05]} Nbd7 {[%clk 00:02:57]} {[%emt
00:00:05]} 10. Be2 {[%clk 00:02:55]} {[%emt 00:00:07]} Ne4 {[%clk 00:02:49]}
{[%emt 00:00:10]} 11. Bxe7 {[%clk 00:02:54]} {[%emt 00:00:03]} Qxe7 {[%clk
00:02:50]} {[%emt 00:00:01]} 12. O-O {[%clk 00:02:54]} {[%emt 00:00:02]} Rac8
{[%clk 00:02:37]} {[%emt 00:00:14]} 13. Nxe4 {[%clk 00:02:40]} {[%emt
00:00:17]} dxe4 {[%clk 00:02:38]} {[%emt 00:00:01]} 14. Nd2 {[%clk 00:02:41]}
f5 {[%clk 00:02:20]} {[%emt 00:00:21]} 15. f3 {[%clk 00:02:42]} {[%emt
00:00:01]} Qg5 {[%clk 00:02:15]} {[%emt 00:00:07]} 16. f4 {[%clk 00:02:27]}
{[%emt 00:00:17]} Qe7 {[%clk 00:02:13]} {[%emt 00:00:03]} 17. Qa4 {[%clk
00:02:05]} {[%emt 00:00:24]} a6 {[%clk 00:01:56]} {[%emt 00:00:20]} 18. b4
{[%clk 00:01:57]} {[%emt 00:00:10]} Nf6 {[%clk 00:01:37]} {[%emt 00:00:20]} 19.
Qb3 {[%clk 00:01:48]} {[%emt 00:00:12]} Rfd8 {[%clk 00:01:33]} {[%emt
00:00:06]} 20. a4 {[%clk 00:01:46]} {[%emt 00:00:04]} c5 {[%clk 00:01:19]}
{[%emt 00:00:16]} 21. dxc5 {[%clk 00:01:43]} {[%emt 00:00:05]} bxc5 {[%clk
00:01:18]} {[%emt 00:00:02]} 22. b5 {[%clk 00:01:45]} axb5 {[%clk 00:01:13]}
{[%emt 00:00:08]} 23. axb5 {[%clk 00:01:45]} {[%emt 00:00:02]} e5 {[%clk
00:01:07]} {[%emt 00:00:08]} 24. Nb1 {[%clk 00:01:22]} {[%emt 00:00:24]} exf4
{[%clk 00:01:06]} {[%emt 00:00:03]} 25. Rxf4 {[%clk 00:01:23]} Qe6 {[%clk
00:00:49]} {[%emt 00:00:20]} 26. Rdf1 {[%clk 00:01:22]} {[%emt 00:00:03]} g6
{[%clk 00:00:48]} {[%emt 00:00:03]} 27. g4 {[%clk 00:00:49]} {[%emt 00:00:35]}
Qe5 {[%clk 00:00:44]} {[%emt 00:00:06]} 28. gxf5 {[%clk 00:00:48]} {[%emt
00:00:03]} g5 {[%clk 00:00:46]} 29. R4f2 {[%clk 00:00:44]} {[%emt 00:00:06]}
Rd6 {[%clk 00:00:36]} {[%emt 00:00:12]} 30. Qc3 {[%clk 00:00:43]} {[%emt
00:00:03]} Qe7 {[%clk 00:00:37]} 31. Rg2 {[%clk 00:00:43]} {[%emt 00:00:03]}
Rcd8 {[%clk 00:00:34]} {[%emt 00:00:05]} 32. h4 {[%clk 00:00:40]} {[%emt
00:00:05]} Rd3 {[%clk 00:00:28]} {[%emt 00:00:08]} 33. hxg5 {[%clk 00:00:28]}
{[%emt 00:00:13]} hxg5 {[%clk 00:00:22]} {[%emt 00:00:08]} 34. Bxd3 {[%clk
00:00:24]} {[%emt 00:00:07]} exd3 {[%clk 00:00:17]} {[%emt 00:00:07]} 35. Rxg5+
{[%clk 00:00:26]} Kf8 {[%clk 00:00:19]} 36. Rg6 {[%clk 00:00:17]} {[%emt
00:00:11]} Qxe3+ {[%clk 00:00:19]} {[%emt 00:00:02]} 37. Rf2 {[%clk 00:00:19]}
Rd4 {[%clk 00:00:09]} {[%emt 00:00:11]} 38. Rxf6+ {[%clk 00:00:19]} {[%emt
00:00:02]} Ke7 {[%clk 00:00:10]} {[%emt 00:00:01]} 39. Re6+ {[%clk 00:00:21]}
{[%emt 00:00:01]} Qxe6 {[%clk 00:00:06]} {[%emt 00:00:05]} 40. fxe6 {[%clk
00:00:22]} Rg4+ {[%clk 00:00:05]} {[%emt 00:00:04]} 41. Kf1 {[%clk 00:00:23]}
{[%emt 00:00:01]} Rh4 {[%clk 00:00:06]} {[%emt 00:00:01]} 42. Qf6+ {[%clk
00:00:23]} {[%emt 00:00:01]} Kd6 {[%clk 00:00:07]} 43. Qxh4 {[%clk 00:00:24]}
{[%emt 00:00:01]} 1-0